bitfinex-derivatives/quotes_ETHF0:USTF0_20241231
["timestamp","ask_amount","ask_price","bid_price","bid_amount"]
[1735652247856,3.06155033,3432.2,3432.0,2.69932402]
[1735652248056,0.29181,3432.1,3431.8,0.29183]
[1735652248354,0.29181,3432.1,3431.9,1.81871502]
[1735652248561,0.29181,3432.1,3432.0,1.81871502]
[1735652249058,0.29181,3432.1,3432.0,3.09123088]
[1735652249253,0.29181,3432.1,3432.0,4.35126699]
[1735652249565,0.29181,3432.1,3432.0,5.24629367]
[1735652249762,0.29181,3432.1,3432.0,5.32802589]
[1735652249961,4.47162169,3432.2,3432.0,5.32802589]
[1735652250159,4.47162169,3432.2,3432.0,0.83951003]
[1735652250359,9.47162169,3432.2,3431.2,4.50031242]
[1735652250662,0.29188,3431.4,3431.3,2.27198312]
[1735652251160,0.29188,3431.4,3431.3,1.69739311]
[1735652251763,0.29192,3430.8,3430.7,4.2029]
[1735652251958,0.29192,3430.8,3430.7,6.47522199]
[1735652252364,0.72967,3431.5,3430.7,6.47522199]
[1735652252567,0.29192,3431.0,3430.8,2.27232199]
[1735652252758,0.29192,3431.0,3430.7,4.2029]
[1735652253068,0.29192,3430.8,3430.7,4.2029]
[1735652253264,0.29192,3430.8,3430.7,5.45267008]
[1735652253454,0.29192,3430.8,3430.7,4.45757008]
[1735652253659,0.29192,3430.8,3430.7,3.2078]
[1735652253861,3.2078,3431.0,3430.2,4.2105]
[1735652254055,0.29197,3430.3,3430.2,3.2078]
[1735652254366,0.29197,3430.2,3430.1,4.50031242]
[1735652255268,0.29199,3430.1,3430.0,3.2078]
[1735652255869,0.29202,3429.8,3429.6,3.2078]
[1735652256068,0.72992,3430.3,3429.6,3.2078]
[1735652256368,3.83001833,3430.4,3429.6,3.2078]
[1735652256667,0.29197,3430.3,3430.0,3.2078]
[1735652256976,0.29197,3430.3,3430.1,1.0023]
[1735652257162,3.2078,3430.6,3430.1,1.0023]
[1735652257365,0.29197,3430.3,3430.1,1.0023]
[1735652257564,0.29197,3430.2,3430.1,1.0023]
[1735652258464,0.29197,3430.2,3430.1,0.45642059]
[1735652259372,3.49977,3430.2,3430.1,0.45642059]
[1735652259558,3.49977,3430.2,3430.1,0.81306715]
[1735652259764,8.2078,3430.2,3429.5,3.2078]
[1735652259965,0.29203,3429.6,3429.5,3.2078]
[1735652260172,0.29203,3429.6,3429.5,4.46781866]
[1735652260567,0.29203,3429.6,3429.5,1.26001866]
[1735652261257,1.0489,3429.8,3429.5,1.25232621]
[1735652261462,0.29202,3429.7,3429.6,1.25182343]
[1735652262366,0.29202,3429.7,3429.6,2.03440892]
[1735652262966,1.30842,3429.7,3429.6,2.03440892]
[1735652263675,1.30842,3429.7,3428.6,3.2078]
[1735652263676,0.2921,3428.7,3428.6,3.2078]
[1735652263975,0.29212,3428.5,3428.2,3.2078]
[1735652264163,0.7302,3429.0,3428.3,1.27152417]
[1735652264164,0.29213,3428.4,3428.3,1.27152417]
[1735652264366,2.034,3428.9,3428.2,3.2078]
[1735652264572,0.29214,3428.3,3428.2,3.2078]
[1735652264868,0.29214,3428.3,3428.2,4.4864369]
[1735652265073,0.29209,3428.8,3428.2,4.4864369]
[1735652265273,0.29213,3428.4,3428.2,3.2078]
[1735652266072,0.29215,3428.2,3428.1,1.0067]
[1735652266675,0.29217,3427.9,3427.8,3.2078]
[1735652268168,3.2078,3428.5,3427.8,3.2078]
[1735652268367,3.49992,3428.5,3428.4,0.42914821]
[1735652269374,3.2078,3428.5,3427.8,3.2078]
[1735652269573,0.73022,3429.0,3427.8,3.2078]
[1735652269574,2.034,3428.9,3427.8,3.2078]
[1735652269774,2.034,3428.9,3428.2,3.2078]
[1735652270077,2.32609,3428.9,3428.8,0.42879441]
[1735652270469,2.034,3428.9,3428.8,0.42874567]
[1735652270669,2.034,3428.9,3428.6,0.42874567]
[1735652270874,0.2921,3428.7,3428.6,0.42874567]
[1735652271379,0.29211,3428.6,3428.5,0.42874567]
[1735652272075,0.29211,3428.6,3428.5,0.45352325]
[1735652272873,3.49991,3428.6,3428.5,0.45352325]
[1735652273680,3.49991,3428.6,3428.5,1.67055282]
[1735652273978,3.49991,3428.6,3428.5,2.09929849]
[1735652274772,3.73262432,3428.6,3428.5,2.09929849]
[1735652275177,3.73262432,3428.6,3428.5,1.67055282]
[1735652275677,3.73262432,3428.6,3428.5,2.86033347]
[1735652275981,3.73262432,3428.6,3428.5,2.43152518]
[1735652276178,8.44051432,3428.6,3427.9,0.42822445]
[1735652276481,8.44051432,3428.6,3426.9,3.2078]
[1735652276482,2.77861833,3427.9,3426.9,3.2078]
[1735652276683,0.29223,3427.3,3427.0,1.097]
[1735652277077,2.77861833,3427.9,3427.0,1.097]
[1735652277271,0.29223,3427.3,3427.0,1.097]
[1735652277476,0.73048,3427.7,3427.0,1.097]
[1735652277874,0.29223,3427.3,3427.0,1.097]
[1735652278480,0.73048,3427.7,3427.0,1.097]
[1735652278682,0.29221,3427.5,3427.3,3.2078]
[1735652278980,0.73042,3428.0,3427.4,1.0245]
[1735652279174,0.29218,3427.8,3427.5,0.9956]
[1735652279379,0.29218,3427.8,3427.6,1.0879]
[1735652279585,0.29219,3427.7,3427.6,1.0879]
[1735652280176,0.29219,3427.8,3427.6,1.0879]
[1735652280380,6.71677833,3428.3,3427.6,1.0879]
[1735652280381,3.2078,3428.3,3427.6,1.0879]
[1735652280583,0.29215,3428.2,3427.8,0.29218]
[1735652280791,3.49994,3428.3,3427.9,0.29217]
[1735652280989,3.2078,3428.3,3427.7,3.2078]
[1735652281285,0.29216,3428.0,3427.7,3.2078]
[1735652281590,0.29215,3428.2,3427.7,3.49998]
[1735652281786,3.49994,3428.3,3427.8,0.29217]
[1735652282088,0.29215,3428.2,3427.8,0.29217]
[1735652282483,0.29217,3428.0,3427.7,3.2078]
[1735652282683,1.246,3428.6,3427.7,3.2078]
[1735652282884,2.77861833,3428.3,3427.6,1.0879]
[1735652283190,0.29219,3427.7,3427.6,1.0879]
[1735652284492,0.2922,3427.5,3427.4,1.0245]
[1735652284688,0.2922,3427.5,3427.4,2.0375]
[1735652285988,0.2922,3427.5,3427.4,3.24083708]
[1735652286297,4.02461833,3427.9,3427.4,3.24083708]
[1735652286298,4.02461833,3427.9,3427.4,4.51977968]
[1735652286486,0.2922,3427.6,3427.5,1.20333708]
[1735652286687,0.2922,3427.6,3427.5,2.48227968]
[1735652287084,0.29218,3427.9,3427.5,2.48227968]
[1735652287291,3.49996,3428.1,3427.7,0.29219]
[1735652287481,3.2078,3428.1,3427.8,2.48227968]
[1735652287687,3.49996,3428.1,3427.9,1.20333708]
[1735652287996,3.49995,3428.1,3428.0,2.48227968]
[1735652288186,3.49995,3428.1,3428.0,2.4695149]
[1735652288882,3.49995,3428.1,3428.0,1.1905723]
[1735652289591,0.29215,3428.1,3428.0,2.46953218]
[1735652290182,5.82871668,3428.1,3428.0,2.46953218]
[1735652290588,10.82871668,3428.1,3428.0,2.46953218]
[1735652290888,10.82871668,3428.1,3428.0,1.1905723]
[1735652290889,5.82871668,3428.1,3428.0,1.1905723]
[1735652291484,5.82871668,3428.1,3428.0,1.98952408]
[1735652291888,10.53656668,3428.1,3426.9,3.2078]
[1735652292094,2.32876668,3427.5,3427.0,2.2105768]
[1735652292397,2.32876668,3427.5,3426.9,3.2078]
[1735652292398,0.29221,3427.4,3427.1,2.2105768]
[1735652292593,2.32876668,3427.6,3427.2,2.2105768]
[1735652292793,2.32876668,3427.6,3427.3,3.2628768]
[1735652292999,0.29221,3427.4,3427.3,1.0523]
[1735652293296,0.29221,3427.4,3427.3,2.24598336]
[1735652294398,0.29221,3427.4,3427.3,1.19368336]
[1735652296291,2.32876668,3427.6,3427.3,1.19368336]
[1735652296292,1.70730433,3427.6,3427.3,1.19368336]
[1735652296491,1.70730433,3427.6,3427.4,1.19368336]
[1735652296688,1.70730433,3427.6,3426.9,3.2078]
[1735652296890,0.29225,3427.0,3426.9,3.2078]
[1735652297090,0.29225,3427.0,3426.9,4.38475304]
[1735652297290,2.62101668,3427.0,3426.9,4.38475304]
[1735652298201,0.29225,3427.0,3426.9,4.38475304]
[1735652299500,2.62101668,3427.0,3426.9,4.38475304]
[1735652299698,2.62101668,3427.0,3426.9,1.17695304]
[1735652300002,2.32876668,3427.0,3426.4,3.2078]
[1735652300201,2.32876668,3426.7,3426.5,1.17687037]
[1735652300501,2.62103668,3426.7,3426.6,1.17712435]
[1735652300900,2.32876668,3427.0,3426.6,1.17712435]
[1735652301102,0.29227,3426.8,3426.7,1.17712435]
[1735652301996,0.29227,3426.8,3426.7,2.45634684]
[1735652303501,2.85379987,3427.0,3426.7,2.84841644]
[1735652303701,0.29223,3427.0,3426.9,3.2078]
[1735652303903,0.29223,3427.0,3426.9,6.05621644]
[1735652304403,2.62099668,3427.0,3426.9,4.87909209]
[1735652304804,2.62099668,3427.0,3426.9,6.07984401]
[1735652305309,2.62099668,3427.0,3426.9,6.07976698]
[1735652305502,2.62099668,3427.0,3426.9,2.87196698]
[1735652306106,0.29223,3427.0,3426.9,2.87198763]
[1735652306500,2.62099668,3427.0,3426.9,2.87198763]
[1735652307202,2.62099668,3427.0,3426.9,6.07978763]
[1735652307409,1.70732126,3427.0,3426.9,6.07978763]
[1735652307805,0.29223,3427.0,3426.9,4.51178758]
[1735652308912,3.69350147,3427.3,3426.9,5.96017409]
[1735652309108,0.29221,3427.1,3427.0,3.24406651]
[1735652309310,0.29221,3427.1,3427.0,4.38522249]
[1735652309612,0.29221,3427.1,3427.0,3.37302249]
[1735652309808,0.29221,3427.1,3427.0,3.39778758]
[1735652310307,0.29221,3427.1,3427.0,1.30398758]
[1735652310708,0.29221,3427.1,3427.0,0.02476509]
[1735652311003,5.73006815,3427.3,3426.5,3.2078]
[1735652311207,0.73072,3426.3,3425.8,3.2078]
[1735652311413,0.29233,3425.7,3425.6,4.50031242]
[1735652311609,0.29233,3425.7,3425.6,5.77988536]
[1735652311909,0.29233,3425.8,3425.6,9.00487373]
[1735652312110,0.29232,3425.8,3425.7,3.25477837]
[1735652312306,0.29232,3425.8,3425.7,3.37717294]
[1735652312707,3.57076668,3426.2,3425.7,3.37717294]
[1735652312708,4.5713176,3426.0,3425.7,3.37717294]
[1735652312909,3.38681341,3426.0,3425.8,4.25003467]
[1735652313110,0.29231,3425.9,3425.8,1.29676131]
[1735652313305,0.29231,3425.9,3425.8,5.52936876]
[1735652314017,0.2923,3426.0,3425.8,4.87480942]
[1735652314206,0.2923,3426.0,3425.9,2.55444215]
[1735652314406,0.2923,3426.0,3425.9,3.83401509]
[1735652314910,0.2923,3426.0,3425.9,3.85120346]
[1735652315301,0.29231,3426.0,3425.9,3.07884083]
[1735652316210,0.29231,3426.0,3425.9,3.81005055]
[1735652316411,2.32876668,3426.0,3425.9,3.81005055]
[1735652316814,2.62107668,3426.0,3425.9,3.81005055]
[1735652317200,2.62107668,3426.0,3425.9,3.07884083]
[1735652317404,2.62107668,3426.0,3425.9,1.79926789]
[1735652318413,2.62107668,3426.0,3425.9,1.77747053]
[1735652319110,2.62107668,3426.0,3425.1,4.2527]
[1735652319111,0.29237,3425.2,3425.1,4.2527]
[1735652319311,2.32876668,3425.2,3425.1,5.46529277]
[1735652319510,2.62113668,3425.2,3425.1,6.74512018]
[1735652319907,2.62113668,3425.2,3425.1,1.27982741]
[1735652320309,2.32876668,3425.2,3424.4,1.0265]
[1735652320511,0.29242,3424.6,3424.5,1.19696328]
[1735652320707,0.29242,3424.6,3424.5,2.47693365]
[1735652322211,0.29242,3424.6,3424.5,1.27997037]
[1735652322406,1.242,3424.7,3424.3,1.0379]
[1735652322407,2.321,3424.7,3424.3,1.0379]
[1735652322609,2.62120668,3424.4,3424.3,1.0379]
[1735652323413,0.29244,3424.4,3424.3,1.0379]
[1735652323620,2.32876668,3425.0,3424.3,4.2457]
[1735652323821,0.29241,3424.8,3424.7,3.2078]
[1735652324710,2.32876668,3425.3,3424.7,3.2078]
[1735652324914,0.2924,3424.9,3424.7,3.2078]
[1735652325115,2.32876668,3425.3,3424.7,3.2078]
[1735652325318,7.86533336,3424.8,3423.1,4.50031242]
[1735652325513,0.29249,3423.8,3423.7,2.92]
[1735652325713,2.32876668,3423.8,3423.1,6.57531242]
[1735652326014,2.62125668,3423.8,3423.7,2.92]
[1735652327222,2.62125668,3423.8,3423.7,3.985]
[1735652330727,0.29249,3423.8,3423.7,3.985]
[1735652331031,0.29249,3423.8,3423.7,4.71929365]
[1735652331425,0.29249,3423.8,3423.7,5.16544308]
[1735652331828,2.62125668,3423.8,3423.7,5.16544308]
[1735652332526,2.62125668,3423.8,3423.7,4.43114943]
[1735652332732,2.62125668,3423.8,3423.7,5.16530769]
[1735652333527,2.62125668,3423.8,3423.7,5.16527026]
[1735652333726,2.32876668,3423.8,3423.7,5.16527026]
[1735652333931,1.41431669,3423.8,3423.7,5.16527026]
[1735652334128,2.32876668,3424.0,3423.7,5.16527026]
[1735652334331,0.29248,3423.9,3423.8,1.75942083]
[1735652334823,0.29248,3423.9,3423.8,4.67942083]
[1735652335031,0.29248,3423.9,3423.8,7.88722083]
[1735652335331,0.29248,3423.9,3423.8,10.35845328]
[1735652336133,0.29248,3423.9,3423.8,5.95962741]
[1735652336433,2.32876668,3424.0,3423.8,10.35925405]
[1735652336627,2.32876668,3424.3,3423.9,6.20172747]
[1735652336830,0.29246,3424.2,3424.0,3.20615405]
[1735652337133,0.29244,3424.5,3424.2,2.92]
[1735652337434,2.62118668,3424.6,3424.5,2.92]
[1735652337627,2.62118668,3424.6,3424.5,3.65451659]
[1735652338229,2.62118668,3424.6,3424.5,5.39177717]
[1735652338924,5.82898668,3424.6,3424.5,5.39177717]
[1735652339531,5.82898668,3424.6,3424.5,5.39227788]
[1735652339933,5.82898668,3424.6,3424.5,5.39279911]
[1735652340234,5.82898668,3424.6,3424.5,2.47279911]
[1735652340539,5.82898668,3424.6,3424.0,1.0638]
[1735652340540,0.29247,3424.1,3424.0,1.0638]
[1735652340722,2.62123668,3424.1,3424.0,2.25814989]
[1735652341035,2.62123668,3424.1,3424.0,3.9838]
[1735652342831,2.32876668,3424.1,3424.0,3.9838]
[1735652343133,3.2078,3424.6,3424.0,3.9838]
[1735652343337,0.29244,3424.4,3424.1,1.0895]
[1735652343531,3.2078,3424.6,3424.5,2.92]
[1735652343732,5.82898668,3424.6,3424.5,2.92]
[1735652343928,5.53656668,3424.6,3424.0,1.0638]
[1735652344132,0.29243,3424.5,3424.4,2.92]
[1735652344333,2.35403,3424.5,3424.4,2.92]
[1735652344537,0.29243,3424.5,3424.4,2.92]
[1735652348141,1.0987,3425.0,3424.4,2.92]
[1735652348342,3.2078,3425.1,3424.9,2.92]
[1735652348537,3.2078,3425.1,3425.0,2.92]
[1735652348744,5.82894668,3425.1,3425.0,2.92]
[1735652348939,5.82894668,3425.1,3425.0,1.92]
[1735652349535,0.29241,3424.7,3424.6,1.0224]
[1735652350036,0.29241,3424.7,3424.6,2.9424]
[1735652351740,0.29241,3424.7,3424.6,1.92]
[1735652352043,1.40601,3424.7,3424.6,1.92]
[1735652352440,1.40601,3424.7,3424.6,2.65235986]
[1735652352655,4.61381,3424.7,3424.6,3.10111414]
[1735652352838,4.61381,3424.7,3424.6,3.10114633]
[1735652353541,4.61381,3424.7,3424.6,3.10106246]
[1735652354241,1.40601,3424.7,3424.6,3.10106246]
[1735652354446,4.61381,3424.7,3424.6,2.36875428]
[1735652354743,1.40601,3424.7,3424.6,3.10102821]
[1735652354942,1.40601,3424.7,3424.6,2.76559784]
[1735652355141,1.40601,3424.7,3424.6,3.10113256]
[1735652355538,4.61381,3424.7,3424.6,3.10113256]
[1735652355734,4.61381,3424.7,3424.6,3.10395347]
[1735652355938,1.40601,3424.7,3424.6,3.10395347]
[1735652356546,1.40601,3424.7,3424.6,3.10405599]
[1735652357042,0.29241,3424.7,3424.6,3.10405599]
[1735652359546,0.29241,3424.7,3424.6,3.10405575]
[1735652360146,0.29241,3424.7,3424.6,3.10411967]
[1735652360341,3.50021,3424.7,3424.6,3.10411967]
[1735652360937,3.50021,3424.7,3424.6,1.07861746]
[1735652361151,0.29247,3424.0,3423.9,2.1619]
[1735652361354,2.62123668,3424.0,3423.9,2.49759156]
[1735652361647,0.29247,3424.1,3423.9,4.41759156]
[1735652361851,2.32876668,3424.3,3423.9,2.1619]
[1735652362145,0.29245,3424.3,3424.2,1.92]
[1735652362347,0.29245,3424.3,3424.2,2.25569623]
[1735652363348,4.88299669,3424.3,3424.2,2.25569623]
[1735652363943,4.59054669,3424.3,3424.2,2.25569623]
[1735652364143,1.32874669,3424.3,3424.2,2.54815623]
[1735652364641,3.50022,3424.7,3424.2,2.54815623]
[1735652364642,3.2078,3424.7,3424.2,2.54815623]
[1735652364844,3.2078,3424.7,3424.6,1.92]
[1735652365046,3.50021,3424.7,3424.6,2.25569623]
[1735652365547,3.50021,3424.7,3424.6,2.25569949]
[1735652365748,9.20495223,3424.7,3424.6,2.25569949]
[1735652366348,9.20495223,3424.7,3424.6,0.33569949]
[1735652366749,3.50021,3424.7,3424.6,0.33569949]
[1735652367240,3.50021,3424.7,3424.6,2.25569949]
[1735652368342,3.50021,3424.7,3424.6,0.33569949]
[1735652368549,3.50021,3424.7,3424.6,0.33577883]
[1735652369141,0.29247,3424.1,3424.0,1.0828]
[1735652369444,3.50021,3424.7,3424.6,1.92]
[1735652369648,3.50021,3424.7,3424.6,2.25580289]
[1735652370148,3.50021,3424.7,3424.6,100.24580289]
[1735652370749,3.50021,3424.7,3424.6,98.32580289]
[1735652371652,10.350954,3424.7,3424.6,97.99]
[1735652372547,7.143154,3424.7,3424.6,97.99]
[1735652372752,10.350954,3424.7,3424.6,97.99]
[1735652373156,10.350954,3424.7,3424.6,98.72021014]
[1735652373355,10.350954,3424.7,3424.6,98.38443042]
[1735652376057,10.350954,3424.7,3424.6,98.72018992]
[1735652376755,10.350954,3424.7,3424.6,100.64018992]
[1735652376955,7.143154,3424.7,3424.6,100.64018992]
[1735652377552,7.143154,3424.7,3424.6,100.63987728]
[1735652378050,7.143154,3424.7,3424.6,100.63985176]
[1735652378248,6.04014292,3424.7,3424.6,100.63985176]
[1735652379357,5.74773292,3424.7,3424.6,100.63985176]
[1735652379558,5.74773292,3424.7,3424.6,100.24560267]
[1735652379753,5.74773292,3424.8,3424.6,100.63980804]
[1735652379947,5.74773292,3424.8,3424.7,3.91590804]
[1735652380159,5.74773292,3424.8,3424.7,5.83590804]
[1735652380547,5.74773292,3424.8,3424.7,5.50014865]
[1735652380753,5.74773292,3424.8,3424.7,5.83561624]
[1735652381361,0.29241,3424.8,3424.7,5.83561624]
[1735652381762,0.29241,3424.8,3424.7,5.84782223]
[1735652381964,0.2924,3424.9,3424.7,5.84782223]
[1735652382157,0.2924,3424.9,3424.8,0.72951624]
[1735652382455,0.2924,3424.9,3424.8,2.64951624]
[1735652382860,0.2924,3424.9,3424.8,2.66172223]
[1735652384159,8.0764996,3425.1,3424.8,2.66172223]
[1735652384160,5.74773292,3425.1,3424.8,2.66172223]
[1735652384357,5.74773292,3425.1,3425.0,2.21239]
[1735652384664,5.74773292,3425.1,3425.0,2.64951624]
[1735652384865,4.00643292,3425.1,3425.0,2.95411223]
[1735652385565,4.00643292,3425.5,3425.0,2.66172223]
[1735652385763,0.29236,3425.4,3425.1,1.02189624]
[1735652385969,0.29236,3425.4,3425.2,0.74172223]
[1735652386162,0.29236,3425.4,3425.3,2.64951624]
[1735652386561,0.29236,3425.4,3425.3,1.92]
[1735652386768,0.29236,3425.4,3425.3,2.64795701]
[1735652386965,0.29236,3425.4,3425.3,2.660163]
[1735652388355,2.62112668,3425.4,3425.3,2.660163]
[1735652388863,2.62112668,3425.4,3425.3,2.66007901]
[1735652389066,2.62112668,3425.4,3425.3,2.32541858]
[1735652389461,0.29241,3424.8,3424.7,4.329]
[1735652389665,2.32876668,3424.8,3424.7,0.33479139]
[1735652389966,0.29241,3424.7,3424.6,97.52867575]
[1735652390167,3.78421,3424.7,3424.6,86.14584614]
[1735652390459,3.78421,3424.7,3424.6,85.39644614]
[1735652390665,3.78421,3424.7,3424.6,75.15806744]
[1735652391064,3.78421,3424.7,3424.6,74.57226744]
[1735652391863,3.78421,3424.7,3424.6,44.76954134]
[1735652391864,11.11297668,3424.7,3424.6,44.76954134]
[1735652392161,11.11297668,3424.7,3424.6,17.75848153]
[1735652392367,11.11297668,3424.7,3424.6,5.32854283]
[1735652392559,10.82056668,3424.7,3422.9,4.50031242]
[1735652392760,2.62131668,3423.2,3423.0,0.33498627]
[1735652392969,2.62131668,3423.2,3423.1,0.33498627]
[1735652393665,2.62131668,3423.2,3422.9,4.55031242]
[1735652393866,2.62131668,3423.2,3423.0,0.33481918]
[1735652394062,6.76256668,3423.5,3422.9,0.05]
[1735652394267,7.05508668,3423.5,3423.0,0.33478565]
[1735652394471,0.29254,3423.3,3423.1,0.33478565]
[1735652394665,4.4338,3423.5,3423.2,0.33478565]
[1735652394867,4.4338,3423.5,3422.9,0.05]
[1735652395164,2.29387031,3423.1,3423.0,0.33462447]
[1735652396267,2.29387031,3423.2,3423.0,0.3343912]
[1735652396467,2.29387031,3423.2,3423.1,0.3343912]
[1735652396868,2.29387031,3423.2,3423.1,41.1343912]
[1735652397171,2.58641031,3423.2,3423.1,0.3343912]
[1735652397367,2.29387031,3423.3,3422.7,5.55246668]
[1735652397665,2.29387031,3423.3,3422.8,44.34211528]
[1735652397869,0.29256,3423.1,3422.9,0.33431528]
[1735652398066,0.29256,3423.1,3423.0,0.33431528]
[1735652398474,2.29387031,3423.3,3422.8,44.0078]
[1735652398668,0.29256,3423.0,3422.8,44.0078]
[1735652398867,0.29256,3423.1,3422.8,44.0078]
[1735652399168,0.29256,3423.0,3422.9,0.33412497]
[1735652399367,2.29387031,3423.2,3422.9,0.33412497]
[1735652399571,0.29255,3423.1,3422.8,3.2078]
[1735652399774,0.29255,3423.1,3422.9,0.33401684]
[1735652399970,0.29255,3423.1,3422.8,3.2078]
[1735652400166,0.29255,3423.1,3422.9,0.3340726]
[1735652400366,0.29255,3423.1,3422.8,3.2078]
[1735652400574,2.29387031,3423.2,3422.7,44.0237]
[1735652400870,0.29258,3422.8,3422.7,44.0237]
[1735652401175,0.29255,3423.1,3422.7,44.0237]
[1735652401366,0.29255,3423.1,3422.8,3.2078]
[1735652401566,2.29387031,3423.2,3422.8,3.2078]
[1735652401971,0.29257,3422.9,3422.8,3.2078]
[1735652402869,2.29387031,3423.1,3422.8,3.2078]
[1735652403273,0.29257,3423.0,3422.8,3.2078]
[1735652403775,2.29387031,3423.1,3422.9,2.32876668]
[1735652404075,2.29387031,3423.3,3423.0,1.0871]
[1735652404675,0.55527031,3423.3,3423.2,2.62130668]
[1735652404872,1.70230547,3423.4,3423.3,0.29253]
[1735652405066,0.69757578,3423.4,3423.3,0.29253]
[1735652405376,4.58774063,3424.1,3423.9,0.29248]
[1735652405575,4.58774063,3424.1,3424.0,4.2803]
[1735652406167,4.88021063,3424.1,3424.0,4.2803]
[1735652406365,4.58774063,3424.1,3424.0,4.2803]
[1735652406571,4.58774063,3424.1,3424.0,4.57277]
[1735652406767,0.29245,3424.3,3424.0,4.57277]
[1735652407075,0.29244,3424.4,3424.2,0.29245]
[1735652407375,0.29241,3424.8,3424.5,0.29242]
[1735652407677,0.29242,3424.7,3424.5,5.82898668]
[1735652407974,0.29241,3424.8,3424.6,0.29242]
[1735652408177,0.29241,3424.8,3424.5,5.53656668]
[1735652408376,1.1255,3425.2,3424.5,5.53656668]
[1735652408579,1.1255,3425.2,3424.5,5.82899668]
[1735652408580,0.29242,3424.7,3424.5,5.82899668]
[1735652409973,0.29242,3424.6,3424.5,3.2078]
[1735652410173,0.29242,3424.7,3424.5,3.50023]
[1735652410374,0.29242,3424.6,3424.5,3.2078]
[1735652413583,0.29239,3425.0,3424.5,3.50023]
[1735652413777,0.29242,3424.7,3424.5,3.50023]
[1735652413980,0.29242,3424.6,3424.5,3.2078]
[1735652414183,0.29242,3424.7,3424.5,3.50023]
[1735652414480,1.1255,3425.2,3424.5,3.2078]
[1735652414685,0.29241,3424.8,3424.6,0.29242]
[1735652414869,1.1255,3425.2,3424.5,3.2078]
[1735652415073,0.29242,3424.6,3424.5,3.50023]
[1735652415274,0.73096,3425.1,3424.5,3.50023]
[1735652415471,0.29242,3424.7,3424.5,3.50023]
[1735652415879,3.2078,3424.9,3424.1,1.1443]
[1735652416076,0.29244,3424.4,3424.2,0.29245]
[1735652416377,1.85645,3425.2,3424.1,1.1443]
[1735652416576,0.29238,3425.1,3424.8,0.2924]
[1735652416783,0.29238,3425.1,3424.8,3.5002]
[1735652417083,0.29239,3425.0,3424.8,3.2078]
[1735652417285,1.1255,3425.2,3424.8,3.2078]
[1735652417583,0.29239,3425.0,3424.8,3.2078]
[1735652417779,0.29238,3425.1,3424.8,3.5002]
[1735652417986,1.1255,3425.2,3424.8,3.5002]
[1735652417987,3.2078,3425.3,3424.8,3.2078]
[1735652418281,7.79554063,3425.7,3425.5,0.29234]
[1735652418479,7.79554063,3425.7,3425.3,2.32876668]
[1735652418680,4.58774063,3425.7,3425.2,8.2078]
[1735652418986,4.58774063,3425.7,3425.6,5.82890668]
[1735652419480,0.29232,3425.9,3425.6,3.50013]
[1735652419677,5.65174063,3426.3,3425.6,3.2078]
[1735652419877,5.65174063,3426.3,3425.1,3.3036]
[1735652419878,0.29233,3425.8,3425.4,0.29235]
[1735652420077,0.29233,3425.8,3425.2,3.2078]
[1735652420275,1.1141,3426.2,3425.6,3.2078]
[1735652420580,0.29233,3425.7,3425.6,3.2078]
[1735652421381,1.1141,3426.2,3425.6,3.2078]
[1735652421580,0.29231,3426.0,3425.7,0.29233]
[1735652421780,0.29231,3426.0,3425.6,3.2078]
[1735652421781,1.064,3426.3,3425.6,3.2078]
[1735652421979,1.35628,3426.3,3426.0,3.2078]
[1735652422687,1.064,3426.3,3426.0,3.2078]
[1735652423082,1.064,3426.3,3425.7,2.1367]
[1735652423083,1.35628,3426.3,3425.8,0.29232]
[1735652423586,0.29232,3425.9,3425.6,3.2078]
[1735652423787,0.29232,3425.8,3425.6,3.2078]
[1735652423990,0.29232,3425.9,3425.6,3.2078]
[1735652424777,0.29233,3425.7,3425.2,3.2078]
[1735652424986,0.29232,3425.8,3425.3,0.29236]
[1735652425188,0.29233,3425.7,3425.2,3.50017]
[1735652425389,1.1039,3426.0,3425.3,0.29236]
[1735652425390,0.29233,3425.8,3425.3,0.29236]
[1735652426788,0.29233,3425.7,3425.3,0.29236]
[1735652427090,1.1039,3426.0,3425.3,0.29236]
[1735652427383,1.1039,3426.0,3425.2,3.2078]
[1735652427585,0.29236,3425.3,3425.2,3.2078]
[1735652428687,0.29235,3425.5,3425.2,3.2078]
[1735652428882,0.29231,3425.9,3425.2,3.2078]
[1735652429087,0.29235,3425.6,3425.2,3.2078]
[1735652429488,0.29233,3425.7,3425.2,3.50017]
[1735652429791,0.29233,3425.7,3425.3,0.29236]
[1735652430493,0.29233,3425.7,3425.2,3.50017]
[1735652430999,1.1039,3426.0,3425.4,0.29235]
[1735652431185,1.1238,3426.2,3425.6,3.2078]
[1735652431393,1.064,3426.3,3426.1,0.29229]
[1735652431695,1.064,3426.3,3426.1,41.09229]
[1735652432091,1.064,3426.3,3426.2,0.29229]
[1735652432386,3.2078,3426.4,3426.2,0.29229]
[1735652432788,3.2078,3426.4,3426.2,0.29228]
[1735652433387,3.2078,3426.4,3426.1,0.2923]
[1735652433587,3.2078,3426.4,3426.2,0.29228]
[1735652433790,1.0585,3426.6,3426.5,0.29226]
[1735652434396,1.0585,3426.6,3426.4,3.50007]
[1735652434694,0.29224,3426.8,3426.5,0.29226]
[1735652434894,1.1579,3426.9,3426.5,0.29226]
[1735652435091,0.29224,3426.7,3426.5,0.29226]
[1735652435699,0.29224,3426.8,3426.5,0.29226]
[1735652435889,1.0585,3427.0,3426.4,3.2078]
[1735652435890,3.38726668,3427.0,3426.4,3.2078]
[1735652436090,3.38726668,3427.0,3426.3,0.29227]
[1735652436290,0.29225,3426.7,3426.4,0.29227]
[1735652436492,0.29225,3426.7,3426.0,3.2078]
[1735652436493,2.32876668,3426.7,3426.0,3.2078]
[1735652436696,0.29229,3426.2,3426.0,3.2078]
[1735652436991,1.79604,3426.6,3426.0,3.2078]
[1735652437184,0.29229,3426.2,3426.0,3.2078]
[1735652437390,1.79604,3426.6,3426.0,3.2078]
[1735652437596,0.29228,3426.3,3426.0,3.5001]
[1735652438094,0.29229,3426.2,3426.0,3.5001]
[1735652438491,1.79604,3426.6,3424.8,3.3036]